fUSD/lending_fUSD_20250623
["ID","MTS","AMOUNT","RATE_DAILY","PERIOD"]
[367266278,1750722674087,-736.73,0.00022739,2]
[367266279,1750722674096,-1301.35,0.00022739,2]
[367266280,1750722674105,-490.0,0.00022739,2]
[367266281,1750722674114,-490.0,0.00022739,2]
[367266282,1750722674123,-1417.45,0.00022739,2]
[367266283,1750722674132,-498.78,0.00022739,2]
[367266284,1750722674142,-490.0,0.00022739,2]
[367266285,1750722674151,-507.28811908,0.00022739,2]
[367266286,1750722674160,-519.34,0.00022739,2]
[367266287,1750722674170,-8799.43,0.00022739,2]
[367266288,1750722674180,-3452.51,0.00022739,2]
[367266289,1750722674191,-642.9,0.00022739,2]
[367266290,1750722674200,-662.96,0.00022739,2]
[367266291,1750722674208,-600.19,0.00022739,2]
[367266292,1750722674216,-730.64,0.00022739,2]
[367266293,1750722674226,-639.41,0.00022739,2]
[367266294,1750722674235,-748.1,0.00022739,2]
[367266295,1750722674244,-1130.36,0.00022739,2]
[367266296,1750722674253,-307.80391221,0.00022739,2]
[367266297,1750722674263,-1224.48,0.00022739,2]
[367266298,1750722674273,-1249.16,0.00022739,2]
[367266299,1750722674283,-490.0,0.00022739,2]
[367266300,1750722674293,-2032.29,0.00022739,2]
[367266301,1750722674303,-945.68,0.00022739,2]
[367266302,1750722674314,-1953.11,0.00022739,2]
[367266303,1750722674325,-1018.92,0.00022739,2]
[367266304,1750722674335,-490.0,0.00022739,2]
[367266305,1750722674346,-662.33,0.00022739,2]
[367266306,1750722674355,-270.0,0.00022739,2]
[367266307,1750722674365,-1017.38,0.00022739,2]
[367266308,1750722674374,-955.04,0.00022739,2]
[367266309,1750722674383,-490.0,0.00022739,2]
[367266310,1750722674392,-598.02,0.00022739,2]
[367266311,1750722674475,-528.13,0.00022739,2]
[367266312,1750722674485,-490.0,0.00022739,2]
[367266313,1750722674494,-490.0,0.00022739,2]
[367266314,1750722674504,-490.0,0.00022739,2]
[367266315,1750722674513,-773.09,0.00022739,2]
[367266316,1750722674522,-1383.11,0.00022739,2]
[367266317,1750722674531,-614.35,0.00022739,2]
[367266318,1750722674540,-238.87928366,0.00022739,2]
[367266319,1750722674550,-748.23,0.00022739,2]
[367266320,1750722674559,-2159.87,0.00022739,2]
[367266321,1750722674568,-714.68,0.00022739,2]
[367266322,1750722674578,-743.65,0.00022739,2]
[367266323,1750722674587,-490.0,0.00022739,2]
[367266324,1750722674596,-1188.26,0.00022739,2]
[367266325,1750722674605,-490.0,0.00022739,2]
[367266326,1750722674614,-490.0,0.00022739,2]
[367266327,1750722674623,-568.52,0.00022739,2]
[367266328,1750722674634,-490.0,0.00022739,2]
[367266329,1750722674643,-490.0,0.00022739,2]
[367266330,1750722674653,-799.5,0.00022739,2]
[367266331,1750722674663,-425.04152128,0.00022739,2]
[367266332,1750722674671,-3712.65,0.00022739,2]
[367266333,1750722674680,-490.0,0.00022739,2]
[367266334,1750722674689,-666.68,0.00022739,2]
[367266335,1750722674698,-6183.08,0.00022739,2]
[367266336,1750722674707,-2265.52,0.00022739,2]
[367266337,1750722674716,-665.97,0.00022739,2]
[367266338,1750722674725,-1772.95,0.00022739,2]
[367266339,1750722674734,-501.76,0.00022739,2]
[367266340,1750722674743,-748.79,0.00022739,2]
[367266341,1750722674751,-1159.28,0.00022739,2]
[367266342,1750722674761,-490.0,0.00022739,2]
[367266343,1750722674770,-490.0,0.00022739,2]
[367266344,1750722674779,-490.0,0.00022739,2]
[367266345,1750722674788,-588.89,0.00022739,2]
[367266346,1750722674797,-3504.75,0.00022739,2]
[367266347,1750722674806,-151.0,0.00022739,7]
[367266348,1750722674815,-614.49,0.00022739,2]
[367266349,1750722674824,-720.06,0.00022739,2]
[367266350,1750722674837,-682.84,0.00022739,2]
[367266351,1750722674846,-991.61,0.00022739,2]
[367266352,1750722674855,-490.0,0.00022739,2]
[367266353,1750722674865,-205.6588029,0.00022739,2]
[367266354,1750722674875,-580.16,0.00022739,2]
[367266355,1750722674886,-1219.28,0.00022739,2]
[367266356,1750722674895,-490.0,0.00022739,2]
[367266357,1750722674904,-490.0,0.00022739,2]
[367266358,1750722674914,-943.5,0.00022739,2]
[367266359,1750722674924,-490.0,0.00022739,2]
[367266360,1750722674933,-2894.4,0.00022739,2]
[367266361,1750722674942,-2679.66,0.00022739,2]
[367266362,1750722674951,-922.8,0.00022739,2]
[367266363,1750722674960,-543.32395637,0.00022739,2]
[367266364,1750722674970,-490.0,0.00022739,2]
[367266365,1750722674979,-1234.77,0.00022739,2]
[367266366,1750722674989,-490.0,0.00022739,2]
[367266367,1750722674998,-1380.74,0.00022739,2]
[367266368,1750722675007,-1053.74,0.00022739,2]
[367266369,1750722675017,-2030.88,0.00022739,2]
[367266370,1750722675026,-490.0,0.00022739,2]
[367266371,1750722675035,-490.0,0.00022739,2]
[367266372,1750722675044,-490.0,0.00022739,2]
[367266373,1750722675053,-1872.56,0.00022739,2]
[367266374,1750722675062,-684.68,0.00022739,2]
[367266375,1750722675071,-490.0,0.00022739,2]
[367266376,1750722675080,-626.06069466,0.00022739,2]
[367266377,1750722675089,-3876.92,0.00022739,2]
[367266378,1750722675098,-490.0,0.00022739,2]
[367266379,1750722675107,-767.49,0.00022739,2]
[367266380,1750722675116,-490.0,0.00022739,2]
[367266381,1750722675125,-8470.08,0.00022739,2]
[367266382,1750722675139,-490.0,0.00022739,2]
[367266383,1750722675148,-900.72,0.00022739,2]
[367266384,1750722675157,-654.11,0.00022739,2]
[367266385,1750722675166,-1352.33,0.00022739,2]
[367266386,1750722675175,-490.0,0.00022739,2]
[367266387,1750722675185,-1097.54,0.00022739,2]
[367266388,1750722675195,-1340.74,0.00022739,2]
[367266389,1750722675204,-490.0,0.00022739,2]
[367266390,1750722675214,-3230.89,0.00022739,2]
[367266391,1750722675223,-353.83664085,0.00022739,2]
[367266392,1750722675232,-490.0,0.00022739,2]
[367266393,1750722675241,-490.0,0.00022739,2]
[367266394,1750722675250,-866.86,0.00022739,2]
[367266395,1750722675259,-1448.28,0.00022739,2]
[367266396,1750722675268,-490.0,0.00022739,2]
[367266397,1750722675277,-771.53,0.00022739,2]
[367266398,1750722675287,-490.0,0.00022739,2]
[367266399,1750722675296,-490.0,0.00022739,2]
[367266400,1750722675305,-490.0,0.00022739,2]
[367266401,1750722675314,-537.03,0.00022739,2]
[367266402,1750722675324,-2349.97,0.00022739,2]
[367266403,1750722675334,-5871.64,0.00022739,2]
[367266404,1750722675344,-490.0,0.00022739,2]
[367266405,1750722675354,-6144.25,0.00022739,2]
[367266406,1750722675363,-490.0,0.00022739,2]
[367266407,1750722675373,-490.0,0.00022739,2]
[367266408,1750722675386,-490.0,0.00022739,2]
[367266409,1750722675396,-490.0,0.00022739,2]
[367266410,1750722675405,-3583.29,0.00022739,2]
[367266411,1750722675415,-514.78,0.00022739,2]
[367266412,1750722675425,-656.93,0.00022739,2]
[367266413,1750722675435,-701.3,0.00022739,2]
[367266414,1750722675445,-693.71,0.00022739,2]
[367266415,1750722675455,-490.0,0.00022739,2]
[367266416,1750722675464,-1008.04,0.00022739,2]
[367266417,1750722675473,-1747.08,0.00022739,2]
[367266418,1750722675482,-2226.86,0.00022739,2]
[367266419,1750722675491,-490.0,0.00022739,2]
[367266420,1750722675501,-923.1,0.00022739,2]
[367266421,1750722675510,-857.2,0.00022739,2]
[367266422,1750722675519,-490.0,0.00022739,2]
[367266423,1750722675529,-895.24,0.00022739,2]
[367266424,1750722675538,-861.76,0.00022739,2]
[367266425,1750722675547,-507.09,0.00022739,2]
[367266426,1750722675556,-500.0,0.00022773,2]
[367266427,1750722675565,-500.0,0.00022773,2]
[367266428,1750722675574,-500.0,0.00022773,2]
[367266429,1750722675583,-500.0,0.00022773,2]
[367266430,1750722675592,-201.0,0.00022782,8]
[367266431,1750722675601,-1368.75866438,0.000228,7]
[367266432,1750722675610,-3410.664,0.00022854,2]
[367266433,1750722675619,-166.995,0.00022854,2]
[367266434,1750722675628,-215.0738,0.00022857,2]
[367266435,1750722675639,-6245.65629074,0.00022883,2]
[367266436,1750722675648,-450.40816069,0.00022907,2]
[367266437,1750722675658,-305.28807261,0.00022974,2]
[367266438,1750722675668,-2405.33,0.00023,2]
[367266439,1750722675678,-500.0,0.00023003,2]
[367266440,1750722675688,-491.07709627,0.00023012,2]
[367266441,1750722675697,-666.0,0.00023012,2]
[367266442,1750722675706,-474.95375917,0.00023012,2]
[367266443,1750722675715,-768.02,0.00023012,2]
[367266444,1750722675724,-768.02,0.00023012,2]
[367266445,1750722675734,-256.21,0.00023012,2]
[367266446,1750722675743,-506.19253454,0.00023012,2]
[367266447,1750722675753,-4560.06,0.00023012,2]
[367266448,1750722675762,-4560.06,0.00023012,2]
[367266449,1750722675771,-627.28,0.00023012,2]
[367266450,1750722675780,-627.28,0.00023012,2]
[367266451,1750722675790,-490.0,0.00023013,2]
[367266452,1750722675800,-490.0,0.00023013,2]
[367266453,1750722675810,-490.0,0.00023013,2]
[367266454,1750722675819,-544.01,0.00023013,2]
[367266455,1750722675840,-490.0,0.00023013,2]
[367266456,1750722675850,-490.0,0.00023013,2]
[367266457,1750722675859,-490.0,0.00023013,2]
[367266458,1750722675868,-490.0,0.00023013,2]
[367266459,1750722675879,-237.64713107,0.00023013,2]
[367266460,1750722675889,-490.0,0.00023013,2]
[367266461,1750722675899,-258.78284065,0.00023013,2]
[367266462,1750722675908,-490.0,0.00023013,2]
[367266463,1750722675918,-490.0,0.00023013,2]
[367266464,1750722675927,-769.985057,0.00023013,2]
[367266465,1750722675936,-490.0,0.00023013,2]
[367266466,1750722675947,-490.0,0.00023013,2]
[367266467,1750722675958,-846.230061,0.00023013,2]
[367266468,1750722675968,-2887.656586,0.00023013,2]
[367266469,1750722675978,-490.0,0.00023013,2]
[367266470,1750722675987,-155.429331,0.00023013,2]
[367266471,1750722675997,-490.0,0.00023013,2]
[367266472,1750722676006,-490.0,0.00023013,2]
[367266473,1750722676016,-490.0,0.00023013,2]
[367266474,1750722676025,-490.0,0.00023013,2]
[367266475,1750722676034,-490.0,0.00023013,2]
[367266476,1750722676043,-490.0,0.00023013,2]
[367266477,1750722676052,-490.0,0.00023013,2]
[367266478,1750722676061,-565.9,0.00023013,2]
[367266479,1750722676070,-490.0,0.00023013,2]
[367266480,1750722676079,-490.0,0.00023013,2]
[367266481,1750722676088,-713.41,0.00023013,2]
[367266482,1750722676096,-490.0,0.00023013,2]
[367266483,1750722676105,-828.92,0.00023013,2]
[367266484,1750722676114,-490.0,0.00023013,2]
[367266485,1750722676124,-1068.05,0.00023013,2]
[367266486,1750722676133,-490.0,0.00023013,2]
[367266487,1750722676142,-490.0,0.00023013,2]
[367266488,1750722676151,-490.0,0.00023013,2]
[367266489,1750722676160,-490.0,0.00023013,2]
[367266490,1750722676169,-490.0,0.00023013,2]
[367266491,1750722676178,-490.0,0.00023013,2]
[367266492,1750722676187,-500.18,0.00023013,2]
[367266493,1750722676197,-716.27,0.00023013,2]
[367266494,1750722676206,-545.2,0.00023013,2]
[367266495,1750722676215,-552.43,0.00023013,2]
[367266496,1750722676224,-490.0,0.00023013,2]
[367266497,1750722676233,-601.5,0.00023013,2]
[367266498,1750722676241,-490.0,0.00023013,2]
[367266499,1750722676250,-155.42933,0.00023013,2]
[367266500,1750722676259,-490.0,0.00023013,2]
[367266501,1750722676268,-297.13431526,0.00023013,2]
[367266502,1750722676277,-490.0,0.00023013,2]
[367266503,1750722676286,-611.92,0.00023013,2]
[367266504,1750722676295,-490.0,0.00023013,2]
[367266505,1750722676305,-952.95,0.00023013,2]
[367266506,1750722676314,-490.0,0.00023013,2]
[367266507,1750722676323,-718.57,0.00023013,2]
[367266508,1750722676333,-490.0,0.00023013,2]
[367266509,1750722676342,-490.0,0.00023013,2]
[367266510,1750722676350,-490.0,0.00023013,2]
[367266511,1750722676360,-757.18,0.00023013,2]
[367266512,1750722676369,-679.45,0.00023013,2]
[367266513,1750722676378,-514.37,0.00023013,2]
[367266514,1750722676389,-500.0,0.00023013,2]
[367266515,1750722676398,-402.39059455,0.00023013,2]
[367266516,1750722676408,-1110.86,0.00023013,2]
[367266517,1750722676417,-490.0,0.00023013,2]
[367266518,1750722676427,-639.7,0.00023013,2]
[367266519,1750722676435,-505.49,0.00023013,2]
[367266520,1750722676445,-179.98,0.00023013,2]
[367266521,1750722676455,-490.0,0.00023013,2]
[367266522,1750722676464,-490.0,0.00023013,2]
[367266523,1750722676474,-490.0,0.00023013,2]
[367266524,1750722676483,-582.87,0.00023013,2]
[367266525,1750722676492,-490.0,0.00023013,2]
[367266526,1750722676502,-751.41,0.00023013,2]
[367266527,1750722676512,-490.0,0.00023013,2]
[367266528,1750722676521,-490.0,0.00023013,2]
[367266529,1750722676530,-980.74,0.00023013,2]
[367266530,1750722676540,-554.04,0.00023013,2]
[367266531,1750722676549,-609.37,0.00023013,2]
[367266532,1750722676559,-490.0,0.00023013,2]
[367266533,1750722676568,-490.0,0.00023013,2]
[367266534,1750722676577,-533.71,0.00023013,2]
[367266535,1750722676586,-490.0,0.00023013,2]
[367266536,1750722676596,-849.14,0.00023013,2]
[367266537,1750722676605,-490.0,0.00023013,2]
[367266538,1750722676615,-490.0,0.00023013,2]
[367266539,1750722676624,-490.0,0.00023013,2]
[367266540,1750722676634,-491.0,0.00023013,2]
[367266541,1750722676643,-490.0,0.00023013,2]
[367266542,1750722676652,-490.0,0.00023013,2]
[367266543,1750722676662,-1013.16,0.00023013,2]
[367266544,1750722676671,-490.0,0.00023013,2]
[367266545,1750722676680,-490.0,0.00023013,2]
[367266546,1750722676689,-490.0,0.00023013,2]
[367266547,1750722676698,-490.0,0.00023013,2]
[367266548,1750722676707,-780.51,0.00023013,2]
[367266549,1750722676717,-579.65,0.00023013,2]
[367266550,1750722676726,-869.78,0.00023013,2]
[367266551,1750722676735,-660.96,0.00023013,2]
[367266552,1750722676744,-593.95,0.00023013,2]
[367266553,1750722676753,-627.48,0.00023013,2]
[367266554,1750722676763,-633.11,0.00023013,2]
[367266555,1750722676772,-785.73,0.00023013,2]
[367266556,1750722676781,-490.0,0.00023013,2]
[367266557,1750722676789,-490.0,0.00023013,2]
[367266558,1750722676799,-490.0,0.00023013,2]
[367266559,1750722676807,-490.0,0.00023013,2]
[367266560,1750722676817,-918.6,0.00023013,2]
[367266561,1750722676827,-490.0,0.00023013,2]
[367266562,1750722676840,-490.0,0.00023013,2]
[367266563,1750722676849,-490.0,0.00023013,2]
[367266564,1750722676859,-497.36,0.00023013,2]
[367266565,1750722676868,-490.0,0.00023013,2]
[367266566,1750722676879,-589.72,0.00023013,2]
[367266567,1750722676889,-602.51,0.00023013,2]
[367266568,1750722676898,-759.11,0.00023013,2]
[367266569,1750722676907,-531.11,0.00023013,2]
[367266570,1750722676917,-502.6,0.00023013,2]
[367266571,1750722676927,-1316.83,0.00023013,2]
[367266572,1750722676935,-975.58,0.00023013,2]
[367266573,1750722676945,-949.61,0.00023013,2]
[367266574,1750722676954,-490.0,0.00023013,2]
[367266575,1750722676963,-490.0,0.00023013,2]
[367266576,1750722676971,-490.0,0.00023013,2]
[367266577,1750722676981,-490.0,0.00023013,2]
[367266578,1750722676990,-653.64,0.00023013,2]
[367266579,1750722676999,-490.0,0.00023013,2]
[367266580,1750722677008,-490.0,0.00023013,2]
[367266581,1750722677017,-490.0,0.00023013,2]
[367266582,1750722677026,-490.0,0.00023013,2]
[367266583,1750722677035,-648.14,0.00023013,2]
[367266584,1750722677044,-490.0,0.00023013,2]
[367266585,1750722677054,-686.78,0.00023013,2]
[367266586,1750722677066,-556.82,0.00023013,2]
[367266587,1750722677076,-490.0,0.00023013,2]
[367266588,1750722677086,-674.79,0.00023013,2]
[367266589,1750722677095,-490.0,0.00023013,2]
[367266590,1750722677105,-490.0,0.00023013,2]
[367266591,1750722677114,-624.84,0.00023013,2]
[367266592,1750722677124,-1024.07,0.00023013,2]
[367266593,1750722677133,-490.0,0.00023013,2]
[367266594,1750722677142,-490.0,0.00023013,2]
[367266595,1750722677151,-678.9,0.00023013,2]
[367266596,1750722677160,-490.0,0.00023013,2]
[367266597,1750722677169,-490.0,0.00023013,2]
[367266598,1750722677179,-490.0,0.00023013,2]
[367266599,1750722677188,-490.0,0.00023013,2]
[367266600,1750722677197,-1001.69,0.00023013,2]
[367266601,1750722677206,-490.0,0.00023013,2]
[367266602,1750722677215,-490.0,0.00023013,2]
[367266603,1750722677225,-490.0,0.00023013,2]
[367266604,1750722677235,-490.0,0.00023013,2]
[367266605,1750722677244,-490.0,0.00023013,2]
[367266606,1750722677254,-874.8,0.00023013,2]
[367266607,1750722677263,-490.0,0.00023013,2]
[367266608,1750722677272,-737.47,0.00023013,2]
[367266609,1750722677282,-575.57,0.00023013,2]
[367266610,1750722677291,-490.0,0.00023013,2]
[367266611,1750722677300,-490.0,0.00023013,2]
[367266612,1750722677309,-490.0,0.00023013,2]
[367266613,1750722677318,-490.0,0.00023013,2]
[367266614,1750722677328,-490.0,0.00023013,2]
[367266615,1750722677338,-624.47,0.00023013,2]
[367266616,1750722677348,-507.08938514,0.00023013,2]
[367266617,1750722677358,-490.0,0.00023013,2]
[367266618,1750722677367,-490.0,0.00023013,2]
[367266619,1750722677376,-490.0,0.00023013,2]
[367266620,1750722677385,-505.59,0.00023013,2]
[367266621,1750722677394,-664.7,0.00023013,2]
[367266622,1750722677403,-490.0,0.00023013,2]
[367266623,1750722677412,-490.0,0.00023013,2]
[367266624,1750722677421,-490.0,0.00023013,2]
[367266625,1750722677430,-502.1,0.00023013,2]
[367266626,1750722677439,-490.0,0.00023013,2]
[367266627,1750722677451,-490.0,0.00023013,2]
[367266628,1750722677460,-831.47,0.00023013,2]
[367266629,1750722677469,-490.0,0.00023013,2]
[367266630,1750722677479,-490.0,0.00023013,2]
[367266631,1750722677488,-889.99,0.00023013,2]
[367266632,1750722677497,-574.36,0.00023013,2]
[367266633,1750722677506,-644.55,0.00023013,2]
[367266634,1750722677516,-891.28,0.00023013,2]
[367266635,1750722677525,-490.0,0.00023013,2]
[367266636,1750722677533,-1024.42,0.00023013,2]
[367266637,1750722677543,-175.470343,0.00023013,7]
[367266638,1750722677552,-490.0,0.00023013,2]
[367266639,1750722677561,-490.0,0.00023013,2]
[367266640,1750722677570,-1009.98,0.00023013,2]
[367266641,1750722677579,-490.0,0.00023013,2]
[367266642,1750722677588,-1140.07,0.00023013,2]
[367266643,1750722677598,-490.0,0.00023013,2]
[367266644,1750722677608,-490.0,0.00023013,2]
[367266645,1750722677617,-809.41,0.00023013,2]
[367266646,1750722677627,-490.0,0.00023013,2]
[367266647,1750722677636,-490.0,0.00023013,2]
[367266648,1750722677645,-490.0,0.00023013,2]
[367266649,1750722677654,-490.0,0.00023013,2]
[367266650,1750722677663,-490.0,0.00023013,2]
[367266651,1750722677672,-490.0,0.00023013,2]
[367266652,1750722677681,-1220.1,0.00023013,2]
[367266653,1750722677690,-707.74,0.00023013,2]
[367266654,1750722677699,-863.02,0.00023013,2]
[367266655,1750722677708,-490.0,0.00023013,2]
[367266656,1750722677717,-490.0,0.00023013,2]
[367266657,1750722677726,-524.66,0.00023013,2]
[367266658,1750722677734,-490.0,0.00023013,2]
[367266659,1750722677743,-490.0,0.00023013,2]
[367266660,1750722677752,-490.0,0.00023013,2]
[367266661,1750722677762,-490.0,0.00023013,2]
[367266662,1750722677771,-490.0,0.00023013,2]
[367266663,1750722677780,-490.0,0.00023013,2]
[367266664,1750722677790,-743.33,0.00023013,2]
[367266665,1750722677799,-701.07,0.00023013,2]
[367266666,1750722677808,-490.0,0.00023013,2]
[367266667,1750722677818,-490.0,0.00023013,2]
[367266668,1750722677827,-8500.71,0.00023013,2]
[367266669,1750722677840,-490.0,0.00023013,2]
[367266670,1750722677849,-866.14,0.00023013,2]
[367266671,1750722677859,-490.0,0.00023013,2]
[367266672,1750722677868,-726.9,0.00023013,2]
[367266673,1750722677877,-658.73,0.00023013,2]
[367266674,1750722677888,-490.0,0.00023013,2]
[367266675,1750722677897,-709.26,0.00023013,2]
[367266676,1750722677907,-317.85418391,0.00023013,2]
[367266677,1750722677916,-490.0,0.00023013,2]
[367266678,1750722677926,-490.0,0.00023013,2]
[367266679,1750722677935,-520.15,0.00023013,2]
[367266680,1750722677945,-668.39,0.00023013,2]
[367266681,1750722677954,-890.8,0.00023013,2]
[367266682,1750722677963,-490.0,0.00023013,2]
[367266683,1750722677972,-1817.04,0.00023013,2]
[367266684,1750722677982,-490.0,0.00023013,2]
[367266685,1750722677991,-490.0,0.00023013,2]
[367266686,1750722678000,-490.0,0.00023013,2]
[367266687,1750722678010,-490.0,0.00023013,2]
[367266688,1750722678019,-660.76,0.00023013,2]
[367266689,1750722678029,-889.57,0.00023013,2]
[367266690,1750722678038,-852.61,0.00023013,2]
[367266691,1750722678047,-639.15,0.00023013,2]
[367266692,1750722678056,-490.0,0.00023013,2]
[367266693,1750722678066,-725.63,0.00023013,2]
[367266694,1750722678075,-1036.14,0.00023013,2]
[367266695,1750722678084,-490.0,0.00023013,2]
[367266696,1750722678094,-490.0,0.00023013,2]
[367266697,1750722678104,-490.0,0.00023013,2]
[367266698,1750722678113,-250.0,0.00023013,2]
[367266699,1750722678122,-151.0,0.00023013,7]
[367266700,1750722678132,-687.15,0.00023013,2]
[367266701,1750722678142,-2016.76,0.00023013,2]
[367266702,1750722678151,-3451.37,0.00023013,2]
[367266703,1750722678160,-490.0,0.00023013,2]
[367266704,1750722678170,-490.0,0.00023013,2]
[367266705,1750722678180,-490.0,0.00023013,2]
[367266706,1750722678189,-1486.84,0.00023013,2]
[367266707,1750722678199,-293.623704,0.00023013,7]
[367266708,1750722678208,-490.0,0.00023013,2]
[367266709,1750722678218,-988.75,0.00023013,2]
[367266710,1750722678227,-490.0,0.00023013,2]
[367266711,1750722678237,-2600.88,0.00023013,2]
[367266712,1750722678247,-490.0,0.00023013,2]
[367266713,1750722678256,-490.0,0.00023013,2]
[367266714,1750722678266,-852.3,0.00023013,2]
[367266715,1750722678276,-490.0,0.00023013,2]
[367266716,1750722678286,-891.95,0.00023013,2]
[367266717,1750722678296,-490.0,0.00023013,2]
[367266718,1750722678305,-490.0,0.00023013,2]
[367266719,1750722678315,-543.07,0.00023013,2]
[367266720,1750722678324,-490.0,0.00023013,2]
[367266721,1750722678334,-533.43,0.00023013,2]
[367266722,1750722678344,-490.0,0.00023013,2]
[367266723,1750722678354,-490.0,0.00023013,2]
[367266724,1750722678364,-685.3,0.00023013,2]
[367266725,1750722678374,-300.0,0.00023013,2]
[367266726,1750722678383,-490.0,0.00023013,2]
[367266727,1750722678393,-490.0,0.00023013,2]
[367266728,1750722678404,-1059.99,0.00023013,2]
[367266729,1750722678413,-1239.33,0.00023013,2]
[367266730,1750722678424,-1225.41,0.00023013,2]
[367266731,1750722678434,-1859.87,0.00023013,2]
[367266732,1750722678444,-747.66,0.00023013,2]
[367266733,1750722678454,-3515.34,0.00023013,2]
[367266734,1750722678464,-490.0,0.00023013,2]
[367266735,1750722678474,-490.0,0.00023013,2]
[367266736,1750722678484,-214.78593868,0.00023013,2]
[367266737,1750722678494,-2258.43,0.00023013,2]
[367266738,1750722678503,-644.73,0.00023013,2]
[367266739,1750722678513,-588.18,0.00023013,2]
[367266740,1750722678523,-1049.17,0.00023013,2]
[367266741,1750722678533,-1516.29,0.00023013,2]
[367266742,1750722678543,-490.0,0.00023013,2]
[367266743,1750722678553,-68697.11,0.00023013,2]
[367266744,1750722678563,-936.03,0.00023013,2]
[367266745,1750722678573,-1377.576921,0.00023013,7]
[367266746,1750722678584,-1139.14,0.00023013,2]
[367266747,1750722678594,-490.0,0.00023013,2]
[367266748,1750722678604,-647.9,0.00023013,2]
[367266749,1750722678614,-803.72,0.00023013,2]
[367266750,1750722678624,-516.62,0.00023013,2]
[367266751,1750722678634,-1410.85,0.00023013,2]
[367266752,1750722678644,-1134.51,0.00023013,2]
[367266753,1750722678654,-498.27,0.00023013,2]
[367266754,1750722678663,-490.0,0.00023013,2]
[367266755,1750722678673,-1377.576921,0.00023013,7]
[367266756,1750722678682,-971.99,0.00023013,2]
[367266757,1750722678692,-490.0,0.00023013,2]
[367266758,1750722678701,-267.757192,0.00023013,7]
[367266759,1750722678710,-613.92,0.00023013,2]
[367266760,1750722678720,-527.41,0.00023013,2]
[367266761,1750722678729,-490.0,0.00023013,2]
[367266762,1750722678739,-490.0,0.00023013,2]
[367266763,1750722678748,-854.15,0.00023013,2]
[367266764,1750722678758,-1578.51,0.00023013,2]
[367266765,1750722678768,-502.06,0.00023013,2]
[367266766,1750722678778,-1004.78,0.00023013,2]
[367266767,1750722678788,-722.59,0.00023013,2]
[367266768,1750722678798,-1149.68,0.00023013,2]
[367266769,1750722678808,-490.0,0.00023013,2]
[367266770,1750722678818,-1046.97,0.00023013,2]
[367266771,1750722678827,-183.61448283,0.00023013,2]
[367266772,1750722678840,-490.0,0.00023013,2]
[367266773,1750722678849,-490.0,0.00023013,2]
[367266774,1750722678859,-490.0,0.00023013,2]
[367266775,1750722678869,-581.05,0.00023013,2]
[367266776,1750722678879,-1200.68,0.00023013,2]
[367266777,1750722678891,-694.62,0.00023013,2]